Cogmind - Beta 16 @@@ ROGUE MODE // 2025.12.30 @ 22:11:49 Player: telemetry Result: Destroyed by H-61 Shepherd with Heavy Assault Cannon Performance ------------- Evolutions (2) 1000 Regions Visited (3) 600 Robots Destroyed (64) 320 Value Destroyed (1938) 1938 Prototype IDs (5) 100 Alien Tech Used (0) 0 Bonus (0) 0 TOTAL SCORE: 3958 Bonus ------- None Cogmind --------- Core Integrity 0/550 Matter 240/300 Energy 111/275 System Corruption 3% Temperature Cool (3) Movement Flying (29) Location -8/Materials Parts ------- > --- POWER (1) -------- Deuterium Engine > --- PROPULSION (4) --- Cesium-ion Thruster Cesium-ion Thruster Cesium-ion Thruster > --- UTILITY (4) ------ Medium Storage Unit Weight Redist. System > --- WEAPON (2) ------- (None) > --- INVENTORY (10) --- (None) Peak State ------------ > --- POWER ------------ Light Nuclear Core > --- PROPULSION ------- Light Treads Armored Treads Carbon-fiber Leg Carbon-fiber Leg > --- UTILITY ---------- Large Storage Unit Structural Scanner ECM Suite Hardened Medium Armor Plating > --- WEAPON ----------- Heavy Particle Gun Slug Cannon > --- INVENTORY -------- Light Nuclear Core Cesium-ion Thruster Cesium-ion Thruster Cesium-ion Thruster Cesium-ion Thruster Cesium-ion Thruster Medium Storage Unit Weight Redist. System Hacking Suite Makeshift System Restoration Module Recalibrator Heavy Particle Gun Gauss Rifle Subdweller Shrapnel Launcher Mining Claw [Rating: 31] Favorites ----------- Power Light Nuclear Core Engine Subdweller Power Source Power Core Light Nuclear Core Propulsion Light Treads Treads Light Treads Leg Carbon-fiber Leg Wheel Subdweller Monowheel Flight Unit Cesium-ion Thruster Utility Large Storage Unit Device ECM Suite Storage Large Storage Unit Protection Hardened Medium Armor Plating Weapon Particle Cannon Energy Gun Heavy Particle Gun Energy Cannon Particle Cannon Ballistic Gun Minigun Ballistic Cannon Slug Cannon Launcher Subdweller Shrapnel Launcher Slashing Weapon Mining Claw Build | -11 -10 -10 -8 ------- Run | Yrd Mat Sub Mat Slots Evolved 4 | . . . 4 Power . | . . . . Propulsion 2 | . . . 2 Utility 2 | . . . 2 Weapon . | . . . . Parts Attached 57 | 6 10 10 31 Power 10 | 1 2 2 5 Engine 7 | 1 1 2 3 Core 3 | . 1 . 2 Reactor . | . . . . Propulsion 14 | 2 . 2 10 Treads 7 | 2 . 1 4 Leg 3 | . . . 3 Wheel 1 | . . 1 . Hover . | . . . . Flight 3 | . . . 3 Utility 14 | 1 4 2 7 Device 8 | . 3 1 4 Storage 3 | 1 1 . 1 Processor . | . . . . Hackware . | . . . . Protection 3 | . . 1 2 Artifact . | . . . . Weapon 19 | 2 4 4 9 Energy Gun 4 | 1 . . 3 Energy Cannon 6 | . 3 1 2 Ballistic Gun 3 | 1 . . 2 Ballistic Cannon 2 | . . 2 . Launcher 3 | . 1 1 1 Special Weapon . | . . . . Impact Weapon . | . . . . Slashing Weapon 1 | . . . 1 Piercing Weapon . | . . . . Special Melee Weapon . | . . . . Unidentified Prototypes 5 | . . . 5 Parts Lost 19 | . . 6 13 Power 3 | . . 1 2 Propulsion 7 | . . 2 5 Utility 6 | . . 2 4 Weapon 3 | . . 1 2 Highest Loss Streak 7 | . . 3 7 To Critical Strikes . | . . . . Average Backups 10 | . 6 12 12 Power 1 | . 1 1 1 Propulsion 1 | . . . 3 Utility 5 | . 3 8 4 Weapon 2 | . . 2 3 Tool/Special . | . . . . Unused Backups 16 | . 1 3 12 Power 4 | . . 1 3 Propulsion 2 | . . . 2 Utility 7 | . . 2 5 Weapon 3 | . 1 . 2 Tool/Special . | . . . . Average Slot Usage (%) 90 | . 97 91 82 Engine 5 | . 1 11 3 Core 5 | . 12 . 4 Treads 20 | . 27 20 16 Leg 3 | . . . 10 Wheel 2 | . . 3 2 Device 11 | . 12 8 13 Storage 12 | . 14 14 8 Protection 3 | . . 3 5 Energy Gun 2 | . . . 5 Energy Cannon 13 | . 27 13 . Ballistic Cannon 7 | . . 13 7 Peak Build Rating 31 | 6 14 19 31 Average Rating 16 | 4 12 14 23 On Entrance 8 | . 6 14 14 Avg Prop Armor Cover (%) 10 | . . 13 8 Naked Turns 29 | . . . 29 Heaviest Build 59 | 12 34 43 59 Greatest Support 60 | 40 40 40 60 Greatest Overweight (x) 12 | . . 12 3 Average Overweight (x) . | . . . . Largest Inventory Capacity 15 | 8 15 15 15 Average Capacity 13 | 6 10 15 14 Most Carried 15 | 1 10 15 15 Average Carried 10 | . 6 12 12 Final Capacity 15 | 8 15 15 10 Final Carried 15 | 1 10 15 . Class Distribution -------------------- 67% | Mutant 23% | Scavenger-Mutant 5% | Subdweller-Mutant 3% | Derelict-Mutant Dominant Class ---------------- Mutant | -10/Materials Mutant | -10/Subcaves Scavenger-Mutant | -8/Materials Resources | -11 -10 -10 -8 ----------- Run | Yrd Mat Sub Mat Matter Collected 1597 | 263 140 171 1023 Remotely . | . . . . Salvage Created 2021 | 10 644 313 1054 Parts 127 | 5 36 22 64 Haulers Intercepted 3 | . . . 3 Recyclers Shooed 1 | . 1 . . Parts Field Recycled . | . . . . Retrieved Matter . | . . . . Parts Self-Destructed 7 | . . 7 . Prevented . | . . . . Parts Restored . | . . . . Kills | -11 -10 -10 -8 ------- Run | Yrd Mat Sub Mat Combat Hostiles Destroyed 44 | . 13 9 22 Guns 8 | . . . 8 Cannons 31 | . 12 9 10 AOE 4 | . . . 4 Classes Destroyed 12 | 1 5 3 3 Worker 3 | . 1 . 2 Builder 5 | . 2 . 3 Tunneler 2 | 1 . . 1 Hauler 3 | . . . 3 Operator 2 | . 1 . 1 Watcher 5 | . 2 . 3 Swarmer 6 | . . 3 3 Grunt 26 | . 13 . 13 Brawler 1 | . . . 1 Sentry 4 | . . 1 3 Hunter 2 | . . . 2 Subdweller 5 | . . 5 . Best Kill Streak 14 | 1 5 3 14 Combat Bots Only 6 | . 3 3 6 Max Kills in Single Turn 7 | 1 1 1 7 Gunslinging . | . . . . Exploded 3 | . . . 3 Melee . | . . . . Uniques/NPCs Destroyed . | . . . . Combat | -11 -10 -10 -8 -------- Run | Yrd Mat Sub Mat Hostile Shots Fired 371 | . 50 84 237 Missed 98 | . 10 26 62 Hits 273 | . 40 58 175 Melee 1 | . . . 1 Projectile 272 | . 40 58 174 Critical Strikes 7 | . . . 7 Damage Taken 4132 | . 516 966 2650 Core 764 | . 97 112 555 Absorbed by Shields . | . . . . Regen/Repaired (Parts) 200 | . 65 . 135 Core Remaining (%) 58 | 100 . 16 . Volleys Fired 178 | 1 43 50 84 Largest 2 | 1 2 2 2 Hottest 148 | 20 136 148 95 Shots Fired 322 | 1 86 88 147 Gun 79 | 1 . . 78 Cannon 241 | . 85 88 68 Launcher 2 | . 1 . 1 Special . | . . . . Kinetic 135 | 1 . 49 85 Thermal 186 | . 85 39 62 Explosive 1 | . 1 . . Electromagnetic . | . . . . Robot Hit Streak 13 | 1 13 11 8 Robot Miss Streak 5 | . 5 2 5 Penetration Max . | . . . . Secondary Targets . | . . . . Shots Hit Robots 189 | 1 47 53 88 Core Hits 96 | 1 22 16 57 Critical Kills 6 | . 1 3 2 Critical Parts Destroyed 2 | . . . 2 Critical Strikes 15 | . 1 5 9 Burn 5 | . . . 5 Meltdown 2 | . 1 1 . Destroy 8 | . . 4 4 Melee Attacks 4 | . . . 4 Impact . | . . . . Slashing 4 | . . . 4 Piercing . | . . . . Sneak Attacks . | . . . . Combat Hostiles . | . . . . Follow-up Attacks . | . . . . Damage Inflicted 4951 | 12 1056 1243 2640 Guns 1072 | 12 . . 1060 Cannons 3240 | . 1030 1243 967 Explosions 550 | . 26 . 524 Melee 78 | . . . 78 Ramming 11 | . . . 11 Kinetic 2324 | 12 . 703 1609 Thermal 2512 | . 1030 540 942 Explosive 26 | . 26 . . Electromagnetic . | . . . . Impact . | . . . . Slashing 78 | . . . 78 Piercing . | . . . . Highest Corruption 3 | . 2 2 3 Average Corruption 2 | . 2 2 2 Corruption Purged . | . . . . Corruption Blocked . | . . . . Effects 42 | . . 27 15 Message Errors 13 | . . 11 2 Matter Fused 10 | . . 6 4 Heat Flow Errors 3 | . . 1 2 Energy Discharges 5 | . . 3 2 Parts Rejected 1 | . . . 1 Data Loss (minor) 3 | . . 1 2 Data Loss (major) 3 | . . 2 1 Misfires 4 | . . 3 1 Overload Shots . | . . . . Overflow Damage 22 | . . . 22 Projectiles . | . . . . Explosions 18 | . . . 18 Melee 4 | . . . 4 Knockbacks 9 | . . 3 6 Impact . | . . . . Kinetic 9 | . . 3 6 Secondary . | . . . . Self-Inflicted Damage 4 | . . . 4 Shots . | . . . . Rammed 3 | . . . 3 Targets Rammed 3 | . . . 3 Kicked . | . . . . Crushed . | . . . . Highest Temperature 466 | . 371 148 466 Average Temperature 113 | . 98 27 125 Received Heat Transfer 1686 | . 288 192 1206 Effects 5 | . 2 . 3 Shutdowns 1 | . 1 . . Energy Bleed 3 | . 1 . 2 Damage (minor) 1 | . . . 1 Siege Activations . | . . . . Martial Activations . | . . . . Shielding Activations . | . . . . Robots Disrupted . | . . . . Combat Hostiles . | . . . . Robots Corrupted . | . . . . Combat Hostiles . | . . . . Parts Fried . | . . . . Impact Corruptions . | . . . . Robots Melted 2 | . 1 1 . Combat Hostiles 2 | . 1 1 . Parts Melted 8 | . 4 . 4 Heat Transferred 4836 | . 1850 851 2135 Parts Sabotaged . | . . . . Parts Stolen . | . . . . Parts Stripped . | . . . . Power Chain Reactions . | . . . . Alert | -11 -10 -10 -8 ------- Run | Yrd Mat Sub Mat Maximum Alert Level 1 | . . . 1 Low Security (%) 63 | 100 100 . 32 Level 1 36 | . . . 67 Level 2 . | . . . . Level 3 . | . . . . Level 4 . | . . . . Level 5 . | . . . . High Security . | . . . . Max Security . | . . . . Peak Influence 299 | 5 113 . 299 Initial . | . . . . Average 122 | . 41 . 195 Influence Increases 1409 | 5 427 110 867 Destroy 0b10 Robot/C 780 | . 260 80 440 Destroy 0b10 Robot/NC 100 | 5 30 . 65 Destroy Leader 166 | . 64 . 102 Successful Hack 38 | . 15 . 23 Disable Machine 90 | . 30 . 60 Destroy Structure 100 | . 13 . 87 Partial Spotted 45 | . 15 . 30 Lose Combat Pursuer 90 | . . 30 60 Influence Decreases 1145 | 5 363 174 603 Entered New Map 32 | . . 32 . Time Decay 974 | 5 354 142 473 Lost Part 130 | . . . 130 Purge Threat 9 | . 9 . . Squads Dispatched 9 | . 2 . 7 Investigation 8 | . 2 . 6 Extermination . | . . . . Reinforcement 1 | . . . 1 Assault . | . . . . Garrison . | . . . . Intercept . | . . . . Searches Triggered . | . . . . Construction Impeded . | . . . . Haulers Reinforced . | . . . . Active Scanning Responses . | . . . . Cargo Convoy Interrupts . | . . . . Stealth | -11 -10 -10 -8 --------- Run | Yrd Mat Sub Mat Distress Signals 6 | . 1 . 5 Communications Jammed . | . . . . Distress Signals . | . . . . Times Spotted 86 | . 18 13 55 Peak Tracking Total 9 | . 3 3 9 Tactical Retreats 10 | . . 1 9 ECM-based Alert Blocks 15 | . . . 15 Traps | -11 -10 -10 -8 ------- Run | Yrd Mat Sub Mat Traps Triggered 4 | . 3 . 1 Indirectly . | . . . . Trap Hack Attempts . | . . . . Triggered . | . . . . Disarmed . | . . . . Reprogrammed . | . . . . Reused 1 | . . 1 . Traps Extracted . | . . . . Installed 1 | . . 1 . Triggered . | . . . . Most Traps Carried 1 | . . 1 . Machines | -11 -10 -10 -8 ---------- Run | Yrd Mat Sub Mat Machines Disabled 6 | . 2 . 4 Max in Single Turn 2 | . 1 . 2 Machines Repaired . | . . . . Machines Dismantled . | . . . . Machines Sabotaged . | . . . . Overloaded Fab Kills . | . . . . Hacking | -11 -10 -10 -8 --------- Run | Yrd Mat Sub Mat Machines Accessed 18 | . 8 1 9 Terminals 13 | . 6 . 7 Fabricators . | . . . . Repair Stations 2 | . 1 . 1 Recycling Units 1 | . 1 . . Scanalyzers 1 | . . . 1 Garrison Access . | . . . . Total Hacks 62 | . 25 4 33 Successful 22 | . 8 4 10 Failed 40 | . 17 . 23 Catastrophic 7 | . 4 . 3 Database Lockouts . | . . . . Manual 30 | . 14 . 16 Terminals 44 | . 21 . 23 Fabricators . | . . . . Repair Stations 8 | . 2 . 6 Recycling Units 2 | . 2 . . Scanalyzers 4 | . . . 4 Garrison Access . | . . . . Terminal Hacks 14 | . 4 4 6 Record 5 | . . 4 1 Robot Analysis 3 | . 1 . 2 Unreport Threat 1 | . 1 . . Locate Traps 1 | . 1 . . Recall Reinforcements 1 | . . . 1 Hauler Manifests 1 | . . . 1 Zone Layout 2 | . 1 . 1 Fabricator Hacks . | . . . . Repair Station Hacks 4 | . 2 . 2 Scan Component 2 | . 1 . 1 Repair 2 | . 1 . 1 Recycling Unit Hacks 1 | . 1 . . Report Inventory 1 | . 1 . . Scanalyzer 2 | . . . 2 Retrieve Study 2 | . . . 2 Garrison Access Hacks . | . . . . Unauthorized Hacks . | . . . . Terminals . | . . . . Fabricators . | . . . . Repair Stations . | . . . . Recycling Units . | . . . . Scanalyzers . | . . . . Garrison Access . | . . . . Data Cores Recovered 1 | . 1 . . Used . | . . . . Hacking Detections 15 | . 6 . 9 Full Trace Events 9 | . 2 . 7 Feedback Events 1 | . . . 1 Corruption 1 | . . . 1 Feedback Blocked . | . . . . Robot Schematics Acquired . | . . . . Robots Built . | . . . . Authchips . | . . . . Time . | . . . . Total Robot Build Rating . | . . . . Part Schematics Acquired . | . . . . Parts Built . | . . . . Authchips . | . . . . Time . | . . . . Total Part Build Rating . | . . . . Part Studies Acquired 2 | . . . 2 Parts Repaired 2 | . 1 . 1 Time 70 | . 26 . 44 Parts Recycled . | . . . . Recycled Matter . | . . . . Retrieved Matter . | . . . . Retrieved Components . | . . . . Parts Scanalyzed . | . . . . Part Schematics Acquired . | . . . . Parts Damaged . | . . . . Bothacking | -11 -10 -10 -8 ------------ Run | Yrd Mat Sub Mat Used RIF Installer . | . . . . Robots Hacked . | . . . . Non-combat . | . . . . Combat . | . . . . Robot Hacks Applied . | . . . . Relay Couplers Released . | . . . . Fabnet Peak Effective % . | . . . . Robots Rewired . | . . . . Allies Hacked . | . . . . Hacks Repelled . | . . . . Allies | -11 -10 -10 -8 -------- Run | Yrd Mat Sub Mat Total Allies . | . . . . Largest Group . | . . . . Highest-Rated Group . | . . . . Highest-Rated Ally . | . . . . Total Orders . | . . . . Ally Attacks . | . . . . Total Damage . | . . . . Kills . | . . . . Allies Corrupted . | . . . . Allies Melted . | . . . . Intel | -11 -10 -10 -8 ------- Run | Yrd Mat Sub Mat Active Infowar (turns) 1786 | . . 552 1234 Structural 1218 | . . . 1218 ECM 1404 | . . 552 852 Robot Analysis Total 3 | . 1 . 2 Derelict Logs Recovered . | . . . . Drone Launches . | . . . . Drone Recoveries . | . . . . Exploration | -11 -10 -10 -8 ------------- Run | Yrd Mat Sub Mat Turns Passed 4074 | 71 1165 1442 1396 Spaces Moved 1982 | 41 584 677 680 Core 63 | 5 . 6 52 Treads 1305 | 36 584 423 262 Legs 141 | . . . 141 Wheels 396 | . . 248 148 Hover . | . . . . Flight 77 | . . . 77 Fastest Speed 29 | 50 160 120 29 Average Speed 159 | 146 160 180 139 Slowest Speed 650 | 160 160 650 340 Overloaded Moves . | . . . . Propulsion Burnouts . | . . . . Robots Hopped . | . . . . Potential Cave-ins . | . . . . Cave-ins Triggered . | . . . . Exploration Rate (%) 46 | 3 76 46 61 Regions Visited 3 Branch Regions 1 Pre-discovered Areas 1 | . . 1 . Known Exits Taken . | . . . . Unknown Exits Taken 3 | 1 1 1 . Scrap Searched 3 | . . 3 . Spaces Dug . | . . . . Terrain Destroyed 112 | . 9 8 95 Melee . | . . . . Projectile 32 | . . 8 24 AOE 80 | . 9 . 71 Terrain Rammed . | . . . . Walls Destroyed . | . . . . Machines Disabled . | . . . . Actions | -11 -10 -10 -8 --------- Run | Yrd Mat Sub Mat Total 2556 | 48 725 807 976 Wait 242 | . 73 47 122 Move 1979 | 40 583 676 680 Hop . | . . . . Pick Up 43 | 1 8 13 21 Fast Attach 25 | 6 4 2 13 Attach 16 | . 1 2 13 Detach . | . . . . Swap 30 | . 8 7 15 Drop 35 | . 5 9 21 Fire 178 | 1 43 50 84 Melee 4 | . . . 4 Ram 3 | . . . 3 Kick . | . . . . Crush . | . . . . Escape Stasis . | . . . . Rewire . | . . . . Trap 1 | . . 1 . Miscellaneous . | . . . . Route ------- -11/Scrapyard -10/Materials (discovered 4 exits: [*Mat x2] / [*Min] / *Sub) -10/Subcaves (discovered 2 exits: *Mat x2) -8/Materials (discovered 2 exits: [*Fac x2]) History --------- Turn | Location | Event 2 | -11/Scrapyard | Met Revision 17 13 | -11/Scrapyard | Discovered new exit (range 15) 72 | -11/Scrapyard | Entered Materials 262 | -10/Materials | Discovered new exit (range 13) 307 | -10/Materials | Build established: Mutant 442 | -10/Materials | Discovered new exit (range 9) 490 | -10/Materials | Repaired Lgt. Treads 750 | -10/Materials | Discovered new exit (range 7) 1222 | -10/Materials | Discovered new exit (range 10) 1237 | -10/Materials | Entered Subcaves 1245 | -10/Subcaves | Shifting Twisted Machinery released Shrapnel Trap 1251 | -10/Subcaves | Shifting Twisted Machinery released Slug Cannon 1479 | -10/Subcaves | Core integrity fell below 50% 1975 | -10/Subcaves | Lost 3 parts (1n1u1w) 2254 | -10/Subcaves | Disturbed a concealed Subdweller 2329 | -10/Subcaves | Shifting Twisted Machinery released Spk. Treads 2331 | -10/Subcaves | Shifting Twisted Machinery released Battle Cannon 2353 | -10/Subcaves | Shifting Twisted Machinery released Battle Rifle 2465 | -10/Subcaves | Discovered new exit (range 15) 2485 | -10/Subcaves | Core integrity fell below 20% 2521 | -10/Subcaves | Shifting Twisted Machinery released Sub. Laser 2557 | -10/Subcaves | Discovered new exit (range 3) 2631 | -10/Subcaves | Visited Clippyterm 2634 | -10/Subcaves | Learned location of Section 7 (-3) 2679 | -10/Subcaves | Entered Materials 2679 | -8/Materials | Evolved 4 slots: Propulsion x2, Utility x2 2735 | -8/Materials | Repaired Slug Cannon 3343 | -8/Materials | Build established: Scavenger-Mutant 3564 | -8/Materials | Discovered new exit (range 6) 3706 | -8/Materials | Core integrity fell below 50% 4003 | -8/Materials | Core integrity fell below 20% 4015 | -8/Materials | Released all parts (5) 4039 | -8/Materials | Lost 7 parts (1p2n2u2w) 4074 | -8/Materials | Discovered new exit (range 16) 4075 | -8/Materials | Destroyed by H-61 Shepherd with Heavy Assault Cannon Last Messages --------------- 04008_ System corrupted: Energy discharge (-43). 04008_ Lgt. Nuclear Core+ destroyed. 04014_ Critical hit (Burn: +37). 04015_ Released Carbon-fiber Leg. 04015_ Released Lrg. Storage Unit. 04015_ Released Structural Scanner. 04015_ Released Arm. Treads. 04015_ Released Mining Claw. 04016_ Acquired 35 matter. 04023_ Slammed into U-05 Engineer. 04037_ System corrupted: Component data lost. 04057_ Acquired Deuterium Engine. 04059_ Connecting with Terminal... >>Recall(Reinforcements) Establishing remote squad link... No tasked reinforcement squads found. 04069_ ALERT: Suspicious intruders detected, dispatching Cutter reinforcements to area. 04074_ EXIT=FOUND 04075_ Penetrated by Slug. Map ----- +----------------------------------------------------+ | | | | | | | | | ?????????????????????????????????????????????????? | | ?????????????????????????????????????????????????? | | ?????????????????????????????????????????????????? | | ?????????????????????????????????????????????????? | | ?????????????????????????????????????????????????? | | ?????????????????????????????????????????????????? | | ########??????????????? H ???????????????????????? | | ########??????????????# ???????##??????????????? | | ! ##??????????????+ ??????## #####?????????? | | ##??????????????# ??????# #?????????? | | ##??????????????# ??????# "#?????????# | | ##??????????????# ??????# [ T#???????? | | ##??????????????# ??????# "#????????"" | | ##??????????????# #?????#!! #???????""" | | ##??????????????# #??????? #######?""" | | ##??????????##### ##########+### # | | ###+####???????# """ # """ | | # % ###???????# "T" a + """ | | %[==####??????# " " # """ | | %*%####??????# ######+### # | | #=!!=#*##??????# #??? ## ##? | | #### ####??????# @ #?# ## #?? | | ####*####??????+ % #?# """## #??? | | ?###%###???????# #?# """## #???## | | ?###%###???????# #?# """## #????? | | ?###%##????????# #?# ## #????? | | ??##%##????????# """ a #?######### #????? | | ??##%##????????# """"" #?????????# #????? | | ?### ###???????# """"" #?????????# #????? | | ?### ###???????# """"" #?????????# #????? | | ?## ##???????# """ #?????????# #????? | | ?## ##???????# #?????????# #?? ?? | | ?## ##???????# #####?????????# #??"" | | ?## ##???????# """ #?????????????# #?"""" | | ?## ##???????# """"" ##########????# #?"""" | | ### ###??????# """"" # #????# #""""" | | ### ########## """"" # """ #????# # """ | | ## ######### """ # ! """ #????# / | | ## # """ #????# # | | ## T + ###### ###### | | ## # """ + #????? | | ## ######## # ! """ #######+#####?? | | ### ######### ######### """ #??# T #?? | | ### # # ## # #??# """ #?? | | ?## # "T" # ## ##########??# """ #?? | | ?## + # ## # ##????????# """ #?? | +----------------------------------------------------+ Best States ------------- Heat Dissipation 39 Energy Generation 15 Energy Capacity 275 Matter Stores 300 Matter Capacity 300 Sight Range 16 Terrain Scan Density 10 ECM Strength 1 Additional Mass Support 6 Armor Coverage 800 Evasion (%) 64 Recoil Reduction 3 Item Schematics ----------------- None Robot Schematics ------------------ None Fabricated ------------ Nothing Repaired ---------- Lgt. Treads | 53% | -10/Materials Slug Cannon | 18% | -8/Materials Studied --------- Cesium-ion Thruster | -8/Materials | Hacked Lgt. Nuclear Core | -8/Materials | Hacked Alien Tech Used ----------------- None Achievements -------------- Armchair Analyst You Again Challenges ------------ None Game ------ Seed GatlingStealthDisplacer Manual? 0 Play Time 00:51:57 Cumulative 20.9 hours Start 2025.12.30 @ 21:21:29 End 2025.12.30 @ 22:11:49 Sessions 1 Manual Loads 0 Difficulty Rogue Special Mode None Game No. 19 Rogue 19 Adventurer 0 Explorer 0 Win Type - Total 0 Types 0/0/0/0/0/0/0/0/0/0 Lore% 20 Gallery% 20 Achievement% 18 Wizard Run 0 Options --------- Layout 1 ASCII 0 Keyboard 0 Movement Numpad Keybinds 0 Fullscreen 1 Font 24/Smallcaps Map View 50x40 Zoom Use 0% Tactical HUD 1 Map Filters NONE Filters NONE Steam 1 RUN: f958f43e-1d28-42a1-891f-c84155c5863c